fUST/lending_fUST_20250507
["ID","MTS","AMOUNT","RATE_DAILY","PERIOD"]
[360114435,1746555032356,-532.53937528,0.00017695,2]
[360114436,1746555032365,-585.13652031,0.00017695,2]
[360114437,1746555032374,-585.13652031,0.00017695,2]
[360114438,1746555032383,-585.13652031,0.00017695,2]
[360114439,1746555032393,-585.13652031,0.00017695,2]
[360114440,1746555032402,-585.13652031,0.00017695,2]
[360114441,1746555032411,-585.13652031,0.00017695,2]
[360114442,1746555032422,-585.13652031,0.00017695,2]
[360114443,1746555032431,-585.13652031,0.00017695,2]
[360114444,1746555032440,-2417.93510492,0.00017695,2]
[360114445,1746555032450,-1700.97084893,0.00017695,2]
[360114460,1746555038061,-716.96425599,0.00017695,2]
[360114461,1746555038071,-2417.93510492,0.00017695,2]
[360114462,1746555038080,-2417.93510492,0.00017695,2]
[360114463,1746555038090,-854.71787637,0.00017695,2]
[360114464,1746555038101,-1563.21722855,0.00017695,2]
[360114465,1746555038111,-2417.93510492,0.00017695,2]
[360114466,1746555038120,-2417.93510492,0.00017695,2]
[360114467,1746555038130,-2417.93510492,0.00017695,2]
[360114468,1746555038139,-2417.93510492,0.00017695,2]
[360114469,1746555038149,-2417.93510492,0.00017695,2]
[360114470,1746555038158,-2417.93510492,0.00017695,2]
[360114471,1746555038167,-2417.93510492,0.00017695,2]
[360114472,1746555038177,-2417.93510492,0.00017695,2]
[360114473,1746555038187,-2417.93510492,0.00017695,2]
[360114474,1746555038196,-2417.93510492,0.00017695,2]
[360114475,1746555038206,-2417.93510492,0.00017695,2]
[360114476,1746555038216,-2417.93510492,0.00017695,2]
[360114477,1746555038226,-2417.93510492,0.00017695,2]
[360114478,1746555038235,-2417.93510492,0.00017695,2]
[360114479,1746555038244,-2417.93510492,0.00017695,2]
[360114480,1746555038253,-2417.93510492,0.00017695,2]
[360114481,1746555038263,-2417.93510492,0.00017695,2]
[360114482,1746555038273,-2417.93510492,0.00017695,2]
[360114483,1746555038283,-2417.93510492,0.00017695,2]
[360114484,1746555038292,-2417.93510492,0.00017695,2]
[360114485,1746555038302,-2417.93510492,0.00017695,2]
[360114487,1746555038311,-2417.93510492,0.00017695,2]
[360114488,1746555038321,-2417.93510494,0.00017695,2]
[360114489,1746555038330,-2417.93510494,0.00017695,2]
[360114490,1746555038340,-2417.93510494,0.00017695,2]
[360114491,1746555038349,-2417.93510492,0.00017695,2]
[360114492,1746555038359,-7269.737752,0.00017697,2]
[360114493,1746555038368,-1342.05227489,0.00017698,2]
[360114494,1746555038377,-2436.6918948,0.000179,2]
[360114495,1746555038387,-613.55168602,0.00018655,2]
[360114496,1746555038397,-3008.65619073,0.00018748,2]
[360114497,1746555038406,-1351.24045152,0.000188,2]
[360114498,1746555038416,-155.0,0.0001886,2]
[360114499,1746555038425,-153.74,0.00018861,3]
[360114500,1746555038434,-990.68,0.00018861,3]
[360114501,1746555038444,-495.34,0.00018861,3]
[360114502,1746555038604,-247.67,0.00018861,3]
[360114503,1746555038613,-743.01,0.00018861,3]
[360114504,1746555038622,-1351.24045148,0.0001887,2]
[360114505,1746555038632,-276595.39513749,0.00018871,2]
[360114506,1746555038642,-3213.80470594,0.000189,2]
[360114507,1746555038651,-1351.24045148,0.00018939,2]
[360114508,1746555038661,-105437.0,0.00019,2]
[360114509,1746555038670,-191.4,0.00019009,2]
[360114510,1746555038679,-191.4,0.00019009,2]
[360114511,1746555038689,-1351.24045148,0.00019009,2]
[360114512,1746555038710,-150.87121571,0.00019078,2]
[360114513,1746555038720,-1351.24045148,0.00019078,2]
[360114514,1746555038731,-613.55168602,0.00019157,2]
[360114515,1746555038743,-500.0,0.00019173,2]
[360114516,1746555038753,-500.0,0.00019173,2]
[360114517,1746555038763,-500.0,0.00019173,2]
[360114518,1746555038774,-500.0,0.00019173,2]
[360114519,1746555038784,-500.0,0.00019173,2]
[360114520,1746555038794,-500.0,0.00019173,2]
[360114521,1746555038805,-500.0,0.00019173,2]
[360114522,1746555038815,-500.0,0.00019173,2]
[360114523,1746555038826,-261.55051825,0.00019173,2]
[360114524,1746555038836,-500.0,0.00019173,2]
[360114525,1746555038845,-500.0,0.00019173,2]
[360114526,1746555038856,-500.0,0.00019173,2]
[360114527,1746555038866,-500.0,0.00019173,2]
[360114528,1746555038876,-1008.1329008,0.00019177,2]
[360114529,1746555038886,-400.0,0.00019178,2]
[360114530,1746555038896,-402.39565763,0.00019178,2]
[360114531,1746555038906,-400.0,0.00019178,2]
[360114532,1746555038916,-403.35361379,0.00019178,2]
[360114533,1746555038926,-400.0,0.00019178,2]
[360114534,1746555038935,-403.2886634,0.00019178,2]
[360114535,1746555038946,-401.04113812,0.00019178,2]
[360114536,1746555038955,-400.0,0.00019178,2]
[360114537,1746555038966,-400.0,0.00019178,2]
[360114538,1746555038976,-400.0,0.00019178,2]
[360114539,1746555038986,-400.0,0.00019178,2]
[360114540,1746555038995,-400.0,0.00019178,2]
[360114541,1746555039005,-400.0,0.00019178,2]
[360114542,1746555039015,-400.0,0.00019178,2]
[360114543,1746555039025,-400.0,0.00019178,2]
[360114544,1746555039035,-406.72015398,0.00019178,2]
[360114545,1746555039044,-259.028416,0.00019178,2]
[360114546,1746555039054,-400.0,0.00019178,2]
[360114547,1746555039064,-513.04252661,0.00019178,2]
[360114548,1746555039074,-400.0,0.00019178,2]
[360114549,1746555039084,-401.83508776,0.00019178,2]
[360114550,1746555039094,-400.0,0.00019178,2]
[360114551,1746555039104,-400.0,0.00019178,2]
[360114552,1746555039114,-400.0,0.00019178,2]
[360114553,1746555039123,-400.0,0.00019178,2]
[360114554,1746555039133,-401.30563412,0.00019178,2]
[360114555,1746555039142,-400.0,0.00019178,2]
[360114556,1746555039152,-400.0,0.00019178,2]
[360114557,1746555039162,-400.0,0.00019178,2]
[360114558,1746555039172,-400.0,0.00019178,2]
[360114559,1746555039182,-216.3917953,0.00019178,2]
[360114560,1746555039192,-400.0,0.00019178,2]
[360114561,1746555039203,-984.36,0.00019178,2]
[360114562,1746555039213,-400.0,0.00019178,2]
[360114563,1746555039223,-400.0,0.00019178,2]
[360114564,1746555039232,-400.0,0.00019178,2]
[360114565,1746555039242,-231.68795328,0.00019178,2]
[360114566,1746555039251,-400.0,0.00019178,2]
[360114567,1746555039261,-400.0,0.00019178,2]
[360114568,1746555039272,-400.0,0.00019178,2]
[360114569,1746555039282,-400.0,0.00019178,2]
[360114570,1746555039292,-400.0,0.00019178,2]
[360114571,1746555039302,-400.0,0.00019178,2]
[360114572,1746555039311,-400.0,0.00019178,2]
[360114573,1746555039321,-400.0,0.00019178,2]
[360114574,1746555039330,-400.0,0.00019178,2]
[360114575,1746555039340,-400.13538946,0.00019178,2]
[360114576,1746555039349,-400.0,0.00019178,2]
[360114577,1746555039360,-400.0,0.00019178,2]
[360114578,1746555039370,-400.0,0.00019178,2]
[360114579,1746555039380,-400.0,0.00019178,2]
[360114580,1746555039389,-400.0,0.00019178,2]
[360114581,1746555039399,-400.0,0.00019178,2]
[360114582,1746555039409,-401.22799411,0.00019178,2]
[360114583,1746555039418,-404.70681988,0.00019178,2]
[360114584,1746555039428,-400.0,0.00019178,2]
[360114585,1746555039437,-400.0,0.00019178,2]
[360114586,1746555039447,-400.0,0.00019178,2]
[360114587,1746555039457,-400.0,0.00019178,2]
[360114588,1746555039467,-400.0,0.00019178,2]
[360114589,1746555039476,-400.0,0.00019178,2]
[360114590,1746555039486,-400.0,0.00019178,2]
[360114591,1746555039495,-400.0,0.00019178,2]
[360114592,1746555039504,-400.0,0.00019178,2]
[360114593,1746555039514,-401.39677314,0.00019178,2]
[360114594,1746555039524,-425.58788198,0.00019178,2]
[360114595,1746555039534,-400.0,0.00019178,2]
[360114596,1746555039544,-401.30935804,0.00019178,2]
[360114597,1746555039554,-500.0,0.00019178,2]
[360114598,1746555039564,-500.0,0.00019178,2]
[360114599,1746555039575,-500.0,0.00019178,2]
[360114600,1746555039585,-203.04065088,0.00019178,2]
[360114601,1746555039595,-500.0,0.00019178,2]
[360114602,1746555039604,-500.0,0.00019178,2]
[360114603,1746555039615,-500.0,0.00019178,2]
[360114604,1746555039624,-500.0,0.00019178,2]
[360114605,1746555039635,-400.0,0.00019178,2]
[360114606,1746555039644,-500.0,0.00019178,2]
[360114607,1746555039654,-400.0,0.00019178,2]
[360114608,1746555039664,-500.0,0.00019178,2]
[360114609,1746555039673,-500.0,0.00019178,2]
[360114610,1746555039683,-500.0,0.00019178,2]
[360114611,1746555039693,-179.19424047,0.00019178,2]
[360114612,1746555039702,-400.0,0.00019178,2]
[360114613,1746555039712,-400.0,0.00019178,2]
[360114614,1746555039722,-400.0,0.00019178,2]
[360114615,1746555039735,-400.0,0.00019178,2]
[360114617,1746555039745,-400.97084348,0.00019178,2]
[360114619,1746555039756,-400.0,0.00019178,2]
[360114620,1746555039766,-400.0,0.00019178,2]
[360114621,1746555039779,-400.0,0.00019178,2]
[360114622,1746555039790,-400.0,0.00019178,2]
[360114623,1746555039799,-418.59343452,0.00019178,2]
[360114624,1746555039809,-400.0,0.00019178,2]
[360114625,1746555039819,-532.82628806,0.00019178,2]
[360114626,1746555039830,-437.22,0.00019178,2]
[360114627,1746555039840,-400.0,0.00019178,2]
[360114628,1746555039850,-400.0,0.00019178,2]
[360114629,1746555039860,-400.0,0.00019178,2]
[360114630,1746555039871,-400.0,0.00019178,2]
[360114631,1746555039881,-400.0,0.00019178,2]
[360114632,1746555039891,-400.0,0.00019178,2]
[360114633,1746555039902,-400.84686798,0.00019178,2]
[360114635,1746555039911,-502.25070254,0.00019178,2]
[360114637,1746555039922,-400.0,0.00019178,2]
[360114640,1746555039931,-400.0,0.00019178,2]
[360114642,1746555039941,-400.0,0.00019178,2]
[360114643,1746555039951,-461.86,0.00019178,2]
[360114646,1746555039961,-400.0,0.00019178,2]
[360114648,1746555039971,-401.05920041,0.00019178,2]
[360114650,1746555039981,-400.0,0.00019178,2]
[360114652,1746555039990,-400.0,0.00019178,2]
[360114654,1746555040000,-459.42975202,0.00019178,2]
[360114656,1746555040011,-400.0,0.00019178,2]
[360114658,1746555040021,-319.65673398,0.00019178,2]
[360114660,1746555040031,-400.0,0.00019178,2]
[360114662,1746555040041,-400.0,0.00019178,2]
[360114664,1746555040051,-424.31932119,0.00019178,2]
[360114666,1746555040061,-458.42,0.00019178,2]
[360114668,1746555040071,-400.0,0.00019178,2]
[360114670,1746555040081,-400.91459012,0.00019178,2]
[360114672,1746555040091,-400.0,0.00019178,2]
[360114674,1746555040101,-400.0,0.00019178,2]
[360114676,1746555040113,-400.0,0.00019178,2]
[360114678,1746555040122,-400.0,0.00019178,2]
[360114680,1746555040132,-469.63,0.00019178,2]
[360114682,1746555040142,-1379.79,0.00019178,2]
[360114684,1746555040151,-500.0,0.00019178,2]
[360114686,1746555040161,-403.83784036,0.00019178,2]
[360114688,1746555040170,-358.0,0.00019178,2]
[360114690,1746555040180,-400.0,0.00019178,2]
[360114693,1746555040190,-400.0,0.00019178,2]
[360114695,1746555040199,-400.0,0.00019178,2]
[360114697,1746555040209,-400.0,0.00019178,2]
[360114699,1746555040220,-400.0,0.00019178,2]
[360114701,1746555040230,-613.43,0.00019178,2]
[360114703,1746555040240,-400.0,0.00019178,2]
[360114705,1746555040249,-400.0,0.00019178,2]
[360114707,1746555040259,-402.77803583,0.00019178,2]
[360114709,1746555040269,-500.84393885,0.00019178,2]
[360114711,1746555040278,-404.34239598,0.00019178,2]
[360114713,1746555040288,-400.0,0.00019178,2]
[360114715,1746555040298,-400.0,0.00019178,2]
[360114717,1746555040308,-1000.0,0.00019178,2]
[360114719,1746555040318,-402.76247651,0.00019178,2]
[360114721,1746555040327,-402.82132138,0.00019178,2]
[360114723,1746555040337,-400.0,0.00019178,2]
[360114725,1746555040346,-400.0,0.00019178,2]
[360114727,1746555040356,-400.0,0.00019178,2]
[360114729,1746555040365,-400.0,0.00019178,2]
[360114731,1746555040375,-400.0,0.00019178,2]
[360114733,1746555040384,-305.90250876,0.00019178,2]
[360114735,1746555040394,-400.0,0.00019178,2]
[360114738,1746555040404,-400.0,0.00019178,2]
[360114741,1746555040413,-402.47607156,0.00019178,2]
[360114743,1746555040423,-400.0,0.00019178,2]
[360114745,1746555040433,-400.0,0.00019178,2]
[360114747,1746555040443,-400.0,0.00019178,2]
[360114749,1746555040452,-401.69087347,0.00019178,2]
[360114752,1746555040461,-400.0,0.00019178,2]
[360114754,1746555040470,-563.37,0.00019178,2]
[360114756,1746555040480,-400.0,0.00019178,2]
[360114758,1746555040489,-234.1504007,0.00019178,2]
[360114760,1746555040499,-400.0,0.00019178,2]
[360114762,1746555040510,-400.0,0.00019178,2]
[360114764,1746555040520,-400.0,0.00019178,2]
[360114766,1746555040529,-400.0,0.00019178,2]
[360114768,1746555040538,-400.0,0.00019178,2]
[360114770,1746555040548,-402.91911364,0.00019178,2]
[360114772,1746555040557,-400.42065851,0.00019178,2]
[360114774,1746555040567,-557.65,0.00019178,2]
[360114776,1746555040577,-400.0,0.00019178,2]
[360114778,1746555040586,-400.0,0.00019178,2]
[360114780,1746555040596,-500.0,0.00019178,2]
[360114782,1746555040606,-500.0,0.00019178,2]
[360114784,1746555040616,-500.0,0.00019178,2]
[360114786,1746555040625,-533.07018499,0.00019178,2]
[360114788,1746555040635,-400.0,0.00019178,2]
[360114790,1746555040644,-400.0,0.00019178,2]
[360114792,1746555040654,-1052.77,0.00019178,2]
[360114794,1746555040663,-400.0,0.00019178,2]
[360114796,1746555040673,-400.0,0.00019178,2]
[360114799,1746555040683,-400.0,0.00019178,2]
[360114800,1746555040693,-400.0,0.00019178,2]
[360114802,1746555040702,-400.0,0.00019178,2]
[360114805,1746555040713,-460.53,0.00019178,2]
[360114807,1746555040726,-400.0,0.00019178,2]
[360114809,1746555040741,-400.0,0.00019178,2]
[360114811,1746555040751,-400.0,0.00019178,2]
[360114813,1746555040761,-503.74238831,0.00019178,2]
[360114815,1746555040772,-400.0,0.00019178,2]
[360114817,1746555040783,-400.0,0.00019178,2]
[360114819,1746555040792,-400.0,0.00019178,2]
[360114821,1746555040802,-1756.62,0.00019178,2]
[360114823,1746555040813,-400.0,0.00019178,2]
[360114825,1746555040822,-400.0,0.00019178,2]
[360114827,1746555040831,-582.88,0.00019178,2]
[360114829,1746555040841,-400.0,0.00019178,2]
[360114831,1746555040851,-400.0,0.00019178,2]
[360114833,1746555040862,-400.0,0.00019178,2]
[360114835,1746555040872,-400.0,0.00019178,2]
[360114837,1746555040882,-526.14095047,0.00019178,2]
[360114839,1746555040891,-400.0,0.00019178,2]
[360114841,1746555040901,-400.0,0.00019178,2]
[360114843,1746555040911,-405.80884421,0.00019178,2]
[360114845,1746555040920,-400.0,0.00019178,2]
[360114846,1746555040930,-400.0,0.00019178,2]
[360114847,1746555040939,-400.17178998,0.00019178,2]
[360114848,1746555040949,-400.0,0.00019178,2]
[360114849,1746555040959,-400.0,0.00019178,2]
[360114850,1746555040973,-400.0,0.00019178,2]
[360114851,1746555040983,-402.56655068,0.00019178,2]
[360114852,1746555040992,-400.0,0.00019178,2]
[360114853,1746555041002,-675.2,0.00019178,2]
[360114854,1746555041012,-451.51,0.00019178,2]
[360114855,1746555041022,-500.0,0.00019178,2]
[360114856,1746555041034,-400.0,0.00019178,2]
[360114857,1746555041044,-463.5,0.00019178,2]
[360114858,1746555041276,-327.56483332,0.00019178,2]
[360114859,1746555041287,-400.0,0.00019178,2]
[360114860,1746555041296,-400.0,0.00019178,2]
[360114861,1746555041306,-400.0,0.00019178,2]
[360114862,1746555041316,-418.11095225,0.00019178,2]
[360114863,1746555041331,-400.0,0.00019178,2]
[360114864,1746555041342,-400.0,0.00019178,2]
[360114865,1746555041352,-400.0,0.00019178,2]
[360114866,1746555041362,-400.0,0.00019178,2]
[360114867,1746555041372,-400.0,0.00019178,2]
[360114868,1746555041382,-400.0,0.00019178,2]
[360114869,1746555041391,-400.0,0.00019178,2]
[360114870,1746555041401,-400.0,0.00019178,2]
[360114871,1746555041411,-250.28177358,0.00019178,2]
[360114872,1746555041420,-1994.82,0.00019178,2]
[360114873,1746555041430,-502.39141238,0.00019178,2]
[360114874,1746555041440,-520.09874239,0.00019178,2]
[360114875,1746555041450,-400.0,0.00019178,2]
[360114876,1746555041459,-400.0,0.00019178,2]
[360114877,1746555041469,-400.0,0.00019178,2]
[360114878,1746555041480,-400.0,0.00019178,2]
[360114879,1746555041489,-400.0,0.00019178,2]
[360114880,1746555041499,-1428.88,0.00019178,2]
[360114881,1746555041508,-400.0,0.00019178,2]
[360114882,1746555041518,-408.25050653,0.00019178,2]
[360114883,1746555041527,-267.4974309,0.00019178,2]
[360114884,1746555041537,-400.0,0.00019178,2]
[360114885,1746555041547,-401.14486658,0.00019178,2]
[360114886,1746555041556,-400.0,0.00019178,2]
[360114887,1746555041565,-400.0,0.00019178,2]
[360114888,1746555041574,-625.03,0.00019178,2]
[360114889,1746555041584,-400.0,0.00019178,2]
[360114890,1746555041594,-400.0,0.00019178,2]
[360114891,1746555041603,-400.0,0.00019178,2]
[360114892,1746555041613,-400.0,0.00019178,2]
[360114893,1746555041622,-585.31,0.00019178,2]
[360114894,1746555041632,-400.0,0.00019178,2]
[360114895,1746555041642,-400.0,0.00019178,2]
[360114896,1746555041651,-509.59,0.00019178,2]
[360114897,1746555041661,-400.0,0.00019178,2]
[360114898,1746555041671,-400.0,0.00019178,2]
[360114899,1746555041680,-400.0,0.00019178,2]
[360114900,1746555041690,-203.49669118,0.00019178,2]
[360114901,1746555041700,-400.0,0.00019178,2]
[360114902,1746555041710,-400.0,0.00019178,2]
[360114903,1746555041720,-400.0,0.00019178,2]
[360114904,1746555041730,-514.78859153,0.00019178,2]
[360114905,1746555041742,-689.89,0.00019178,2]
[360114906,1746555041752,-844.65,0.00019178,2]
[360114907,1746555041763,-400.0,0.00019178,2]
[360114908,1746555041773,-1000.0,0.00019178,2]
[360114909,1746555041783,-400.0,0.00019178,2]
[360114910,1746555041792,-400.0,0.00019178,2]
[360114911,1746555041802,-400.0,0.00019178,2]
[360114912,1746555041812,-400.0,0.00019178,2]
[360114913,1746555041821,-400.0,0.00019178,2]
[360114914,1746555041831,-1175.32,0.00019178,2]
[360114915,1746555041841,-400.0,0.00019178,2]
[360114916,1746555041850,-1026.77,0.00019178,2]
[360114917,1746555041860,-176.15756633,0.00019178,2]
[360114918,1746555041870,-400.0,0.00019178,2]
[360114919,1746555041880,-400.0,0.00019178,2]
[360114920,1746555041889,-400.0,0.00019178,2]
[360114921,1746555041899,-400.0,0.00019178,2]
[360114922,1746555041909,-400.0,0.00019178,2]
[360114923,1746555041918,-400.0,0.00019178,2]
[360114924,1746555041928,-400.0,0.00019178,2]
[360114925,1746555041938,-400.0,0.00019178,2]
[360114926,1746555041948,-585.18,0.00019178,2]
[360114927,1746555041957,-400.0,0.00019178,2]
[360114928,1746555041968,-400.0,0.00019178,2]
[360114929,1746555041978,-400.0,0.00019178,2]
[360114930,1746555041987,-400.0,0.00019178,2]
[360114931,1746555041997,-401.53584369,0.00019178,2]
[360114932,1746555042007,-400.0,0.00019178,2]
[360114933,1746555042016,-474.87,0.00019178,2]
[360114934,1746555042027,-400.0,0.00019178,2]
[360114935,1746555042038,-400.0,0.00019178,2]
[360114936,1746555042048,-332.90977984,0.00019178,2]
[360114937,1746555042058,-400.0,0.00019178,2]
[360114938,1746555042067,-400.0,0.00019178,2]
[360114939,1746555042077,-400.0,0.00019178,2]
[360114940,1746555042087,-400.0,0.00019178,2]
[360114941,1746555042096,-400.0,0.00019178,2]
[360114942,1746555042106,-217.8951033,0.00019178,2]
[360114943,1746555042116,-400.0,0.00019178,2]
[360114944,1746555042126,-400.0,0.00019178,2]
[360114945,1746555042135,-642.63,0.00019178,2]
[360114946,1746555042148,-400.0,0.00019178,2]
[360114947,1746555042158,-400.0,0.00019178,2]
[360114948,1746555042167,-400.0,0.00019178,2]
[360114949,1746555042177,-400.0,0.00019178,2]
[360114950,1746555042187,-400.0,0.00019178,2]
[360114951,1746555042197,-400.0,0.00019178,2]
[360114952,1746555042207,-506.24899933,0.00019178,2]
[360114953,1746555042219,-415.3774956,0.00019178,2]
[360114954,1746555042229,-400.0,0.00019178,2]
[360114955,1746555042238,-400.0,0.00019178,2]
[360114956,1746555042248,-400.0,0.00019178,2]
[360114957,1746555042258,-400.0,0.00019178,2]
[360114958,1746555042267,-400.0,0.00019178,2]
[360114959,1746555042276,-400.0,0.00019178,2]
[360114960,1746555042285,-400.0,0.00019178,2]
[360114961,1746555042295,-400.0,0.00019178,2]
[360114962,1746555042305,-400.0,0.00019178,2]
[360114963,1746555042314,-400.0,0.00019178,2]
[360114965,1746555042324,-404.44071544,0.00019178,2]
[360114967,1746555042334,-400.0,0.00019178,2]
[360114969,1746555042344,-400.0,0.00019178,2]
[360114970,1746555042353,-400.0,0.00019178,2]
[360114971,1746555042363,-400.0,0.00019178,2]
[360114972,1746555042372,-1524.57,0.00019178,2]
[360114973,1746555042382,-360.81304676,0.00019178,2]
[360114974,1746555042392,-505.38791715,0.00019178,2]
[360114975,1746555042401,-984.59,0.00019178,2]
[360114976,1746555042412,-984.59,0.00019178,2]
[360114977,1746555042423,-984.59,0.00019178,2]
[360114978,1746555042434,-984.59,0.00019178,2]
[360114979,1746555042444,-984.59,0.00019178,2]
[360114980,1746555042454,-400.0,0.00019178,2]
[360114981,1746555042465,-984.59,0.00019178,2]
[360114982,1746555042475,-984.59,0.00019178,2]
[360114983,1746555042486,-984.59,0.00019178,2]
[360114984,1746555042496,-984.59,0.00019178,2]
[360114985,1746555042506,-984.59,0.00019178,2]
[360114986,1746555042515,-984.59,0.00019178,2]
[360114987,1746555042525,-400.0,0.00019178,2]
[360114988,1746555042535,-984.59,0.00019178,2]
[360114989,1746555042545,-984.59,0.00019178,2]
[360114990,1746555042555,-984.59,0.00019178,2]
[360114991,1746555042564,-984.59,0.00019178,2]
[360114992,1746555042576,-984.59,0.00019178,2]
[360114994,1746555042585,-753.36,0.00019178,2]
[360114996,1746555042595,-984.59,0.00019178,2]
[360114998,1746555042604,-408.95706626,0.00019178,2]
[360115000,1746555042614,-400.0,0.00019178,2]
[360115003,1746555042624,-984.59,0.00019178,2]
[360115007,1746555042634,-984.59,0.00019178,2]
[360115011,1746555042643,-984.59,0.00019178,2]
[360115012,1746555042653,-984.59,0.00019178,2]
[360115014,1746555042663,-984.59,0.00019178,2]
[360115016,1746555042672,-984.59,0.00019178,2]
[360115018,1746555042682,-984.762461,0.00019178,2]
[360115021,1746555042691,-400.0,0.00019178,2]
[360115024,1746555042702,-400.0,0.00019178,2]
[360115027,1746555042712,-400.0,0.00019178,2]
[360115031,1746555042723,-400.0,0.00019178,2]
[360115034,1746555042737,-898.37,0.00019178,2]
[360115037,1746555042749,-403.64686653,0.00019178,2]
[360115040,1746555042759,-400.0,0.00019178,2]
[360115043,1746555042769,-400.86104084,0.00019178,2]
[360115046,1746555042779,-400.0,0.00019178,2]
[360115049,1746555042789,-400.0,0.00019178,2]
[360115052,1746555042798,-400.0,0.00019178,2]
[360115055,1746555042809,-1095.13,0.00019178,2]
[360115057,1746555042819,-400.0,0.00019178,2]
[360115059,1746555042828,-561.19,0.00019178,2]
[360115061,1746555042838,-417.89,0.00019178,2]
[360115063,1746555042848,-186.25005525,0.00019178,2]
[360115064,1746555042858,-400.0,0.00019178,2]
[360115065,1746555042867,-401.58873496,0.00019178,2]
[360115066,1746555042877,-431.81714596,0.00019178,2]
[360115067,1746555042887,-400.0,0.00019178,2]
[360115068,1746555042897,-400.0,0.00019178,2]
[360115069,1746555042907,-400.0,0.00019178,2]
[360115070,1746555042916,-400.0,0.00019178,2]
[360115071,1746555042926,-500.0,0.00019178,2]
[360115072,1746555042936,-500.0,0.00019178,2]
[360115073,1746555042945,-400.0,0.00019178,2]
[360115074,1746555042955,-500.0,0.00019178,2]
[360115076,1746555042965,-208.60332497,0.00019178,2]
[360115077,1746555042974,-400.0,0.00019178,2]
[360115078,1746555042984,-400.0,0.00019178,2]
[360115079,1746555042994,-400.0,0.00019178,2]
[360115080,1746555043003,-400.0,0.00019178,2]
[360115081,1746555043014,-409.61226827,0.00019178,2]
[360115082,1746555043024,-1308.2,0.00019178,2]
[360115083,1746555043034,-460.40549829,0.00019178,2]
[360115084,1746555043043,-405.32755235,0.00019178,2]
[360115085,1746555043053,-400.0,0.00019178,2]
[360115086,1746555043063,-400.0,0.00019178,2]
[360115087,1746555043072,-401.67160681,0.00019178,2]
[360115088,1746555043082,-400.0,0.00019178,2]
[360115089,1746555043091,-402.9905216,0.00019178,2]
[360115090,1746555043101,-5262.57,0.00019178,2]
[360115091,1746555043111,-400.0,0.00019178,2]
[360115092,1746555043120,-400.0,0.00019178,2]
[360115093,1746555043130,-428.54,0.00019178,2]
[360115094,1746555043139,-758.88,0.00019178,2]
[360115095,1746555043148,-400.0,0.00019178,2]
[360115096,1746555043156,-405.8713486,0.00019178,2]
[360115097,1746555043166,-400.0,0.00019178,2]
[360115098,1746555043175,-867.45,0.00019178,2]
[360115099,1746555043184,-400.0,0.00019178,2]
[360115100,1746555043194,-400.0,0.00019178,2]
[360115102,1746555043203,-374.12205141,0.00019178,2]
[360115104,1746555043213,-400.0,0.00019178,2]
[360115106,1746555043222,-400.0,0.00019178,2]
[360115108,1746555043232,-400.0,0.00019178,2]
[360115110,1746555043241,-400.0,0.00019178,2]
[360115112,1746555043251,-400.0,0.00019178,2]
[360115114,1746555043261,-400.0,0.00019178,2]
[360115115,1746555043271,-1734.58,0.00019178,2]